fUST/lending_fUST_20241015
["ID","MTS","AMOUNT","RATE_DAILY","PERIOD"]
[340282099,1729003832835,-250.0,0.00025604,2]
[340282100,1729003832853,-167.499999,0.00025628,2]
[340282101,1729003832866,-250.0,0.00025671,2]
[340282102,1729003832877,-250.0,0.00025739,2]
[340282103,1729003832890,-250.0,0.00025807,2]
[340282104,1729003832902,-250.0,0.00025875,2]
[340282105,1729003832914,-250.0,0.00025943,2]
[340282106,1729003832925,-250.0,0.0002601,2]
[340282107,1729003832938,-167.499999,0.00026421,2]
[340282108,1729003832951,-1500.0,0.000268,2]
[340282109,1729003832966,-400.0,0.00027082,2]
[340282110,1729003832978,-1500.0,0.00027397,2]
[340282111,1729003832989,-500.0,0.00028708,2]
[340282112,1729003833003,-1500.0,0.00028767,3]
[340282113,1729003833015,-339.47052687,0.000289,2]
[340282114,1729003833027,-1500.00000001,0.00029,5]
[340282115,1729003833039,-503.76,0.00029,15]
[340282116,1729003833052,-302.8788636,0.00029,2]
[340282117,1729003833065,-339.47052683,0.00029112,2]
[340282118,1729003833079,-800.0,0.0002912,2]
[340282119,1729003833094,-245.3965,0.00029182,2]
[340282120,1729003833107,-500.0,0.00029225,5]
[340282121,1729003833120,-500.434787,0.00029225,5]
[340282122,1729003833133,-500.0,0.00029225,5]
[340282123,1729003833146,-302.8788636,0.0002929,2]
[340282124,1729003833159,-150.0,0.000293,120]
[340282125,1729003833172,-339.47052683,0.00029323,2]
[340282126,1729003833185,-261.53841871,0.00029328,2]
[340282127,1729003833198,-8572.13543862,0.00029328,2]
[340282128,1729003833210,-151.0,0.00029328,7]
[340282129,1729003833222,-863.048994,0.00029328,7]
[340282130,1729003833234,-863.048994,0.00029328,7]
[340282131,1729003833246,-158.18449596,0.0002933,2]
[340282132,1729003833258,-504.92225443,0.00029357,5]
[340282133,1729003833270,-500.0,0.00029357,5]
[340282134,1729003833284,-500.0,0.00029357,5]
[340282135,1729003833297,-154.0,0.0002936,2]
[340282136,1729003833308,-503.3568773,0.00029386,5]
[340282137,1729003833317,-378.3221902,0.00029386,5]
[340282138,1729003833327,-395.14745795,0.00029386,5]
[340282139,1729003833467,-503.14975823,0.00029386,5]
[340282140,1729003833478,-500.0,0.00029386,5]
[340282141,1729003833487,-421.58792832,0.000294,5]
[340282142,1729003833496,-151.0,0.000294,7]
[340282143,1729003833506,-153.875428,0.000294,7]
[340282144,1729003833515,-151.0,0.000294,7]
[340282145,1729003833525,-151.0,0.000294,7]
[340282146,1729003833534,-151.0,0.000294,7]
[340282147,1729003833544,-151.18705113,0.00029442,5]
[340282148,1729003833554,-1151.21,0.00029489,10]
[340282149,1729003833564,-959.34,0.00029489,10]
[340282150,1729003833574,-799.45,0.00029489,10]
[340282151,1729003833584,-204.05155812,0.00029499,2]
[340282152,1729003833597,-500.0,0.00029499,2]
[340282153,1729003833606,-500.0,0.00029499,2]
[340282154,1729003833615,-500.0,0.00029499,2]
[340282155,1729003833625,-233.4372299,0.00029499,2]
[340282156,1729003833634,-515.05484155,0.00029499,2]
[340282157,1729003833644,-151.0,0.00029499,7]
[340282158,1729003833653,-151.0,0.00029499,7]
[340282159,1729003833663,-151.0,0.00029499,7]
[340282160,1729003833672,-151.0,0.00029499,7]
[340282161,1729003833682,-151.0,0.00029499,7]
[340282162,1729003833692,-281.299703,0.00029499,7]
[340282163,1729003833701,-281.299703,0.00029499,7]
[340282164,1729003833711,-151.0,0.00029499,7]
[340282165,1729003833721,-863.048994,0.00029499,7]
[340282166,1729003833731,-863.048994,0.00029499,7]
[340282167,1729003833742,-223.284443,0.00029499,7]
[340282168,1729003833751,-223.284443,0.00029499,7]
[340282169,1729003833761,-151.0,0.00029499,7]
[340282170,1729003833771,-151.0,0.00029499,7]
[340282171,1729003833780,-151.0,0.00029499,7]
[340282172,1729003833790,-151.0,0.00029499,7]
[340282173,1729003833800,-16647.46146684,0.00029499,3]
[340282174,1729003833810,-44723.09595335,0.00029499,3]
[340282175,1729003833820,-4026.5826962,0.000295,4]
[340282176,1729003833830,-26326.5669293,0.000295,4]
[340282177,1729003833843,-151.0,0.000295,7]
[340282178,1729003833853,-190.892569,0.000295,7]
[340282179,1729003833862,-151.0,0.000295,7]
[340282180,1729003833872,-156.775567,0.000295,7]
[340282181,1729003833881,-151.0,0.000295,7]
[340282182,1729003833891,-284.647061,0.000295,7]
[340282183,1729003833901,-151.0,0.000295,7]
[340282184,1729003833910,-3000.0,0.000295,2]
[340282185,1729003833920,-151.0,0.000295,7]
[340282186,1729003833929,-151.903512,0.000295,7]
[340282187,1729003833939,-152.941444,0.000295,7]
[340282188,1729003833950,-151.0,0.000295,7]
[340282189,1729003833962,-151.0,0.000295,7]
[340282190,1729003833972,-151.0,0.000295,7]
[340282191,1729003833981,-151.0,0.000295,7]
[340282192,1729003833991,-151.0,0.000295,7]
[340282193,1729003834001,-151.0,0.000295,7]
[340282194,1729003834011,-151.0,0.000295,7]
[340282195,1729003834020,-151.0,0.000295,7]
[340282196,1729003834030,-152.870771,0.000295,7]
[340282197,1729003834040,-200.939482,0.000295,7]
[340282198,1729003834049,-200.939482,0.000295,7]
[340282199,1729003834058,-152.570149,0.000295,7]
[340282200,1729003834068,-800.144458,0.000295,7]
[340282201,1729003834078,-800.144458,0.000295,7]
[340282202,1729003834089,-151.0,0.000295,7]
[340282203,1729003834102,-151.0,0.000295,7]
[340282204,1729003834111,-223.284443,0.000295,7]
[340282205,1729003834121,-223.284443,0.000295,7]
[340282206,1729003834131,-223.284443,0.000295,7]
[340282207,1729003834140,-223.284443,0.000295,7]
[340282208,1729003834149,-151.0,0.000295,7]
[340282209,1729003834158,-151.0,0.000295,7]
[340282210,1729003834168,-151.0,0.000295,7]
[340282211,1729003834178,-151.0,0.000295,7]
[340282212,1729003834187,-283.833484,0.000295,7]
[340282213,1729003834197,-4026.5826962,0.000295,4]
[340282214,1729003834206,-26326.5669293,0.000295,4]
[340282215,1729003834216,-151.0,0.0002951,7]
[340282216,1729003834225,-281.299703,0.0002951,7]
[340282217,1729003834234,-281.299703,0.0002951,7]
[340282218,1729003834244,-4245.087108,0.0002951,2]
[340282219,1729003834253,-151.0,0.0002951,7]
[340282220,1729003834262,-248.962556,0.0002951,7]
[340282221,1729003834271,-863.048994,0.0002951,7]
[340282222,1729003834281,-863.048994,0.0002951,7]
[340282223,1729003834290,-152.252325,0.0002951,7]
[340282224,1729003834299,-151.0,0.0002951,7]
[340282225,1729003834309,-151.0,0.0002951,7]
[340282226,1729003834318,-151.0,0.0002951,7]
[340282227,1729003834327,-200.939482,0.0002951,7]
[340282228,1729003834337,-200.939482,0.0002951,7]
[340282229,1729003834350,-200.939482,0.0002951,7]
[340282230,1729003834359,-200.939482,0.0002951,7]
[340282231,1729003834368,-800.144458,0.0002951,7]
[340282232,1729003834379,-800.144458,0.0002951,7]
[340282233,1729003834389,-800.144458,0.0002951,7]
[340282234,1729003834399,-800.144458,0.0002951,7]
[340282235,1729003834408,-151.0,0.0002951,7]
[340282236,1729003834417,-151.0,0.0002951,7]
[340282237,1729003834426,-151.0,0.0002951,7]
[340282238,1729003834435,-151.0,0.0002951,7]
[340282239,1729003834444,-223.284443,0.0002951,7]
[340282240,1729003834454,-223.284443,0.0002951,7]
[340282241,1729003834462,-151.0,0.0002951,7]
[340282242,1729003834472,-151.0,0.0002951,7]
[340282243,1729003834481,-339.47052683,0.00029535,2]
[340282244,1729003834490,-287.34872825,0.00029573,5]
[340282245,1729003834500,-500.0,0.00029573,5]
[340282246,1729003834509,-506.7003765,0.00029573,5]
[340282247,1729003834518,-223.284443,0.00029573,7]
[340282248,1729003834528,-223.284443,0.00029573,7]
[340282249,1729003834537,-151.0,0.00029573,7]
[340282250,1729003834547,-179.83002433,0.00029573,7]
[340282251,1729003834556,-302.8788636,0.0002958,2]
[340282252,1729003834565,-151.0,0.0002969,7]
[340282253,1729003834575,-151.0,0.0002969,7]
[340282254,1729003834585,-161.686253,0.00029704,7]
[340282255,1729003834597,-151.0,0.00029704,7]
[340282256,1729003834608,-151.0,0.00029704,7]
[340282257,1729003834617,-151.0,0.00029704,7]
[340282258,1729003834627,-151.0,0.00029704,7]
[340282259,1729003834636,-863.048994,0.00029704,7]
[340282260,1729003834646,-863.048994,0.00029704,7]
[340282261,1729003834656,-151.0,0.00029704,7]
[340282262,1729003834665,-255.22115,0.00029704,7]
[340282263,1729003834675,-200.939482,0.00029704,7]
[340282264,1729003834684,-200.939482,0.00029704,7]
[340282265,1729003834694,-200.939482,0.00029704,7]
[340282266,1729003834704,-200.939482,0.00029704,7]
[340282267,1729003834713,-800.144458,0.00029704,7]
[340282268,1729003834723,-800.144458,0.00029704,7]
[340282269,1729003834733,-800.144458,0.00029704,7]
[340282270,1729003834743,-800.144458,0.00029704,7]
[340282271,1729003834754,-151.0,0.00029704,7]
[340282272,1729003834764,-151.0,0.00029704,7]
[340282273,1729003834774,-151.0,0.00029704,7]
[340282274,1729003834783,-151.0,0.00029704,7]
[340282275,1729003834794,-151.0,0.00029714,7]
[340282276,1729003834804,-155.24905,0.00029714,7]
[340282277,1729003834814,-151.0,0.00029714,7]
[340282278,1729003834824,-284.2165,0.00029714,7]
[340282279,1729003834833,-243.79287747,0.00029714,5]
[340282280,1729003834846,-339.47052683,0.00029746,2]
[340282281,1729003834855,-151.0,0.0002979,7]
[340282282,1729003834864,-151.0,0.0002979,7]
[340282283,1729003834873,-151.0,0.0002979,7]
[340282284,1729003834883,-151.0,0.0002979,7]
[340282285,1729003834892,-151.0,0.0002979,7]
[340282286,1729003834902,-281.299703,0.0002979,7]
[340282287,1729003834912,-281.299703,0.0002979,7]
[340282288,1729003834922,-236.450544,0.0002979,7]
[340282289,1729003834933,-4026.5826962,0.0002979,4]
[340282290,1729003834943,-26326.5669293,0.0002979,4]
[340282291,1729003834954,-223.284443,0.0002979,7]
[340282292,1729003834968,-223.284443,0.0002979,7]
[340282293,1729003834978,-223.284443,0.0002979,7]
[340282294,1729003834987,-223.284443,0.0002979,7]
[340282295,1729003834999,-151.0,0.0002979,7]
[340282296,1729003835009,-151.0,0.0002979,7]
[340282297,1729003835018,-151.0,0.00029793,7]
[340282298,1729003835028,-863.048994,0.00029793,7]
[340282299,1729003835039,-863.048994,0.00029793,7]
[340282300,1729003835050,-151.0,0.00029799,7]
[340282301,1729003835059,-165.9,0.000298,31]
[340282302,1729003835069,-165.9,0.000298,31]
[340282303,1729003835079,-165.9,0.000298,31]
[340282304,1729003835089,-165.9,0.000298,31]
[340282305,1729003835103,-165.9,0.000298,31]
[340282306,1729003835113,-165.9,0.000298,31]
[340282307,1729003835122,-165.9,0.000298,31]
[340282308,1729003835131,-165.9,0.000298,31]
[340282309,1729003835140,-165.9,0.000298,31]
[340282310,1729003835150,-165.9,0.000298,31]
[340282311,1729003835160,-165.9,0.000298,31]
[340282312,1729003835169,-165.9,0.000298,31]
[340282313,1729003835179,-151.0,0.000298,7]
[340282314,1729003835188,-178.200522,0.000298,7]
[340282315,1729003835198,-291.411536,0.000298,7]
[340282316,1729003835207,-151.0,0.000298,7]
[340282317,1729003835216,-200.939482,0.000298,7]
[340282318,1729003835226,-200.939482,0.000298,7]
[340282319,1729003835236,-800.144458,0.000298,7]
[340282320,1729003835246,-800.144458,0.000298,7]
[340282321,1729003835255,-151.0,0.000298,7]
[340282322,1729003835265,-151.0,0.000298,7]
[340282323,1729003835275,-1500.0,0.0002984,2]
[340282324,1729003835284,-151.0,0.00029846,7]
[340282325,1729003835294,-151.0,0.00029846,7]
[340282326,1729003835303,-863.048994,0.00029846,7]
[340282327,1729003835312,-863.048994,0.00029846,7]
[340282328,1729003835322,-151.0,0.00029846,7]
[340282329,1729003835331,-200.939482,0.00029846,7]
[340282330,1729003835344,-200.939482,0.00029846,7]
[340282331,1729003835353,-800.144458,0.00029846,7]
[340282332,1729003835363,-800.144458,0.00029846,7]
[340282333,1729003835373,-151.0,0.00029846,7]
[340282334,1729003835383,-151.0,0.00029846,7]
[340282335,1729003835467,-223.284443,0.00029846,7]
[340282336,1729003835476,-223.284443,0.00029846,7]
[340282337,1729003835486,-151.0,0.00029846,7]
[340282338,1729003835495,-4026.5826962,0.00029855,4]
[340282339,1729003835505,-26326.5669293,0.00029855,4]
[340282340,1729003835514,-223.284443,0.00029855,7]
[340282341,1729003835523,-223.284443,0.00029855,7]
[340282342,1729003835532,-151.0,0.00029855,7]
[340282343,1729003835541,-151.0,0.00029856,7]
[340282344,1729003835550,-151.0,0.00029856,7]
[340282345,1729003835559,-151.0,0.00029856,7]
[340282346,1729003835568,-183.779908,0.00029856,7]
[340282347,1729003835578,-151.0,0.00029856,7]
[340282348,1729003835587,-151.0,0.00029856,7]
[340282349,1729003835603,-154.620576,0.00029856,7]
[340282350,1729003835612,-151.0,0.00029856,7]
[340282351,1729003835620,-151.0,0.00029856,7]
[340282352,1729003835629,-281.299703,0.00029856,7]
[340282353,1729003835638,-281.299703,0.00029856,7]
[340282354,1729003835647,-281.299703,0.00029856,7]
[340282355,1729003835656,-281.299703,0.00029856,7]
[340282356,1729003835666,-151.0,0.00029865,7]
[340282357,1729003835675,-151.0,0.00029865,7]
[340282358,1729003835684,-151.0,0.00029865,7]
[340282359,1729003835695,-42.79672827,0.00029865,7]
[340282360,1729003835710,-108.20327173,0.00029865,7]
[340282361,1729003835719,-823.86352872,0.00029865,7]
[340282386,1729003838509,-151.0,0.00029499,7]
[340282387,1729003838520,-151.0,0.00029499,7]
[340282388,1729003838531,-290.29667,0.000295,7]
[340282389,1729003838542,-172.9508328,0.00029789,2]
[340282390,1729003838552,-184.91730117,0.00029789,2]
[340282391,1729003838564,-157.9478852,0.00029789,2]
[340282392,1729003838574,-39.18546528,0.00029865,7]
[340282393,1729003838584,-863.048994,0.00029865,7]
[340282394,1729003838598,-863.048994,0.00029865,7]
[340282395,1729003838608,-863.048994,0.00029865,7]
[340282396,1729003838618,-151.0,0.00029865,7]
[340282397,1729003838627,-151.0,0.00029865,7]
[340282398,1729003838638,-200.939482,0.00029865,7]
[340282399,1729003838648,-200.939482,0.00029865,7]
[340282400,1729003838657,-200.939482,0.00029865,7]
[340282401,1729003838667,-200.939482,0.00029865,7]
[340282402,1729003838677,-800.144458,0.00029865,7]
[340282403,1729003838687,-800.144458,0.00029865,7]
[340282404,1729003838698,-800.144458,0.00029865,7]
[340282405,1729003838708,-800.144458,0.00029865,7]
[340282406,1729003838718,-151.0,0.00029865,7]
[340282407,1729003838728,-151.0,0.00029865,7]
[340282408,1729003838738,-151.0,0.00029865,7]
[340282409,1729003838749,-231.320698,0.00029865,7]
[340282410,1729003838759,-153.356296,0.00029866,7]
[340282411,1729003838768,-302.8788636,0.0002987,2]
[340282412,1729003838778,-151.0,0.00029875,7]
[340282413,1729003838788,-151.0,0.00029875,7]
[340282414,1729003838797,-151.0,0.00029875,7]
[340282415,1729003838807,-281.299703,0.00029875,7]
[340282416,1729003838816,-281.299703,0.00029875,7]
[340282417,1729003838826,-223.284443,0.00029875,7]
[340282418,1729003838836,-223.284444,0.00029875,7]
[340282419,1729003838850,-151.0,0.00029875,7]
[340282420,1729003838865,-151.0,0.00029885,7]
[340282421,1729003838875,-151.0,0.00029887,7]
[340282422,1729003838885,-151.0,0.00029887,7]
[340282423,1729003838895,-281.299703,0.00029887,7]
[340282424,1729003838904,-281.299703,0.00029887,7]
[340282425,1729003838914,-257.740861,0.00029887,7]
[340282426,1729003838924,-151.0,0.00029887,7]
[340282427,1729003838934,-863.048994,0.00029887,7]
[340282428,1729003838944,-863.048994,0.00029887,7]
[340282429,1729003838955,-151.0,0.00029887,7]
[340282430,1729003838970,-198.191358,0.00029887,7]
[340282431,1729003838980,-200.939482,0.00029887,7]
[340282432,1729003838990,-200.939488,0.00029887,7]
[340282433,1729003839001,-800.144458,0.00029887,7]
[340282434,1729003839011,-800.144467,0.00029887,7]
[340282435,1729003839020,-151.0,0.00029887,7]
[340282436,1729003839030,-4026.5826962,0.0002992,4]
[340282437,1729003839041,-26326.5669293,0.0002992,4]
[340282438,1729003839051,-207.844244,0.0002993,7]
[340282439,1729003839066,-863.048994,0.0002993,7]
[340282440,1729003839076,-863.048996,0.0002993,7]
[340282441,1729003839086,-151.0,0.0002993,7]
[340282442,1729003839101,-198.191358,0.0002993,7]
[340282443,1729003839111,-151.0,0.00029941,7]
[340282444,1729003839122,-151.0,0.00029941,7]
[340282445,1729003839132,-151.0,0.00029941,7]
[340282446,1729003839142,-281.299703,0.00029941,7]
[340282447,1729003839151,-281.299703,0.00029941,7]
[340282448,1729003839161,-151.0,0.0002995,7]
[340282449,1729003839171,-151.0,0.0002995,7]
[340282450,1729003839181,-248.448846,0.0002995,7]
[340282451,1729003839191,-281.299703,0.0002995,7]
[340282452,1729003839203,-281.299703,0.0002995,7]
[340282453,1729003839213,-500.0,0.00029973,5]
[340282454,1729003839223,-151.0,0.0002998,7]
[340282455,1729003839233,-151.0,0.0002998,7]
[340282456,1729003839243,-4026.5826962,0.0002999,4]
[340282457,1729003839253,-26326.5669293,0.0002999,4]
[340282458,1729003839263,-987.20573804,0.0003,2]
[340282459,1729003839273,-1000.0,0.0003,2]
[340282460,1729003839283,-281.299703,0.0003,7]
[340282461,1729003839292,-281.299695,0.0003,7]
[340282462,1729003839302,-500.0,0.00030078,2]
[340282463,1729003839311,-883.0763364,0.00030136,4]
[340282464,1729003839321,-302.8788636,0.0003016,2]
[340282465,1729003839331,-454.3182954,0.0003045,4]
[340282466,1729003839342,-501.4936316,0.00030595,5]
[340282467,1729003839355,-200.0,0.0003066,120]
[340282468,1729003839472,-200.0,0.0003067,120]
[340282469,1729003839481,-200.0,0.0003068,120]
[340282470,1729003839492,-1007.4271702,0.00030727,5]
[340282471,1729003839501,-454.3182954,0.0003074,4]
[340282472,1729003839510,-1000.0,0.00030756,5]
[340282473,1729003839520,-1000.0,0.00030942,5]
[340282474,1729003839530,-454.3182954,0.0003103,4]
[340282475,1729003839539,-304.93110531,0.0003132,4]
[340282476,1729003839549,-500.0,0.00031448,2]
[340282477,1729003839559,-150.0,0.00032189,2]
[340282478,1729003839568,-534.858,0.00032189,2]
[340282479,1729003839578,-1158.0,0.00032189,2]
[340282480,1729003839587,-1806.0,0.00032189,2]
[340282481,1729003839599,-2890.96487765,0.00032189,2]
[340282500,1729003840550,-666.21,0.00032179,10]
[340282501,1729003840560,-4492.66712235,0.00032189,2]
[340282502,1729003840571,-150.5,0.00032756,120]
[340282503,1729003840581,-1072.42500001,0.00032759,5]
[340282504,1729003840590,-150.5,0.00032766,120]
[340282505,1729003840604,-150.5,0.00032776,120]
[340282506,1729003840614,-4026.5826962,0.00032808,4]
[340282507,1729003840624,-22257.90164543,0.00032808,5]
[340282508,1729003841994,-228.0,0.0003,2]
[340282509,1729003842006,-4068.66528387,0.00032808,5]
[340282510,1729003842016,-500.0,0.00032818,2]
[340282511,1729003842026,-250.53216334,0.00032877,2]
[340282512,1729003842037,-1500.0,0.0003288,2]
[340282513,1729003842047,-319.08509737,0.00032946,5]
[340282514,1729003842057,-163.702,0.0003295,34]
[340282515,1729003842066,-228.0,0.00033,2]
[340282516,1729003842077,-353.02572402,0.0003345,5]
[340282517,1729003842087,-500.0,0.0003345,5]
[340282518,1729003842096,-501.26007798,0.0003345,5]
[340282519,1729003842110,-501.5508346,0.0003345,5]
[340282520,1729003842121,-500.0,0.0003345,5]
[340282521,1729003842131,-500.62513503,0.0003345,5]
[340282522,1729003842141,-154.0,0.0003393,120]
[340282523,1729003842151,-154.0,0.0003393,7]
[340282524,1729003842161,-165.9,0.00034,31]
[340282525,1729003842171,-165.9,0.00034,31]
[340282526,1729003842181,-165.9,0.00034,31]
[340282527,1729003842191,-165.9,0.00034,31]
[340282528,1729003842201,-165.9,0.00034,31]
[340282529,1729003842210,-165.9,0.00034,31]
[340282530,1729003842219,-165.9,0.00034,31]
[340282531,1729003842229,-165.9,0.00034,31]
[340282532,1729003842239,-165.9,0.00034,31]
[340282533,1729003842249,-165.9,0.00034,31]
[340282534,1729003842259,-165.9,0.00034,31]
[340282535,1729003842268,-165.9,0.00034,31]
[340282536,1729003842278,-165.9,0.00034,31]
[340282537,1729003842288,-165.9,0.00034,31]
[340282538,1729003842297,-165.9,0.00034,31]
[340282539,1729003842307,-165.9,0.00034,31]
[340282540,1729003842317,-165.9,0.00034,31]
[340282541,1729003842327,-165.9,0.00034,31]
[340282542,1729003842337,-165.9,0.00034,31]
[340282543,1729003842346,-165.9,0.00034,31]
[340282544,1729003842363,-165.9,0.00034,31]
[340282545,1729003842375,-165.9,0.00034,31]
[340282546,1729003842385,-165.9,0.00034,31]
[340282547,1729003842395,-165.9,0.00034,31]
[340282548,1729003842405,-500.0,0.00034187,2]
[340282549,1729003842415,-150.112233,0.000346,7]
[340282550,1729003842425,-226.44015375,0.0003482,5]
[340282551,1729003842435,-501.0465589,0.0003482,5]
[340282552,1729003842445,-1111.0,0.00034849,120]
[340282553,1729003842454,-4026.5826962,0.0003497,5]
[340282554,1729003842464,-26326.5669293,0.0003497,5]
[340282555,1729003842474,-256.0,0.00035,30]
[340282556,1729003842484,-496.83246807,0.00035,7]
[340282557,1729003842493,-1500.0,0.00035,2]
[340282558,1729003842503,-1500.0,0.00035,2]
[340282559,1729003842514,-1500.0,0.00035,2]
[340282560,1729003842523,-1527.59,0.00035,2]
[340282561,1729003842533,-1500.0,0.00035,2]
[340282562,1729003842542,-1500.0,0.00035,2]
[340282563,1729003842552,-15550.311,0.00035,2]
[340282564,1729003842561,-150.0,0.00035189,2]
[340282565,1729003842571,-527.0,0.00035189,2]
[340282566,1729003842581,-1158.0,0.00035189,2]
[340282567,1729003842591,-1806.0,0.00035189,2]
[340282568,1729003842605,-150.112233,0.000352,7]
[340282569,1729003842615,-8053.1653924,0.00035434,5]
[340282570,1729003842625,-26326.5669293,0.00035434,5]
[340282571,1729003842635,-6606.31491234,0.00035444,2]
[340282572,1729003842646,-87023.54621632,0.00035444,2]
[340282573,1729003842655,-522.72222516,0.00035473,5]
[340282574,1729003842665,-500.0,0.00035473,5]
[340282575,1729003842675,-500.0,0.00035473,5]
[340282576,1729003842685,-500.0,0.00035473,5]
[340282577,1729003842695,-500.91614665,0.00035473,5]
[340282578,1729003842704,-501.73703915,0.00035473,5]
[340282579,1729003842714,-993.198025,0.00035557,2]
[340282580,1729003842723,-4026.5826962,0.0003558,5]
[340282581,1729003842732,-21902.41342901,0.000356,3]
[340282582,1729003842741,-4026.5826962,0.00035605,5]
[340282583,1729003842752,-20132.913481,0.00035606,5]
[340282584,1729003842761,-1054.82,0.00035615,2]
[340282585,1729003842771,-1054.82,0.00035615,2]
[340282586,1729003842781,-1054.82,0.00035615,2]
[340282587,1729003842790,-1054.82,0.00035615,2]
[340282588,1729003842799,-1054.82,0.00035615,2]
[340282589,1729003842808,-1054.82,0.00035615,2]
[340282590,1729003842817,-1054.82,0.00035615,2]
[340282591,1729003842826,-1054.82,0.00035615,2]
[340282592,1729003842835,-1054.82,0.00035615,2]
[340282593,1729003842844,-1054.82,0.00035615,2]
[340282594,1729003842858,-500.0,0.00035616,30]
[340282595,1729003842868,-515.54337242,0.00035616,30]
[340282597,1729003842878,-500.0,0.00035616,30]
[340282599,1729003842887,-500.0,0.00035616,30]
[340282601,1729003842897,-503.42684679,0.00035616,30]
[340282603,1729003842906,-506.37078192,0.00035616,20]
[340282604,1729003842916,-506.75513344,0.00035616,30]
[340282605,1729003842926,-506.68392716,0.00035616,30]
[340282606,1729003842935,-1000.0,0.00035616,30]
[340282607,1729003842944,-539.95452039,0.00035616,30]
[340282608,1729003842955,-506.23103284,0.00035616,30]
[340282609,1729003842967,-500.0,0.00035616,30]
[340282610,1729003842976,-551.5,0.00035616,30]
[340282615,1729003843066,-511.26161321,0.00035616,30]
[340282617,1729003843076,-500.0,0.00035616,30]
[340282618,1729003843086,-500.0,0.00035616,30]
[340282620,1729003843095,-500.0,0.00035616,30]
[340282622,1729003843117,-510.77371921,0.00035616,30]
[340282623,1729003843127,-502.80694088,0.00035616,30]
[340282625,1729003843137,-500.0,0.00035616,30]
[340282627,1729003843147,-500.0,0.00035616,30]
[340282628,1729003843158,-288.36291559,0.00035616,30]
[340282629,1729003843168,-500.0,0.00035616,7]
[340282630,1729003843178,-500.0,0.00035616,30]
[340282631,1729003843188,-527.78698867,0.00035616,30]
[340282632,1729003843197,-512.79761847,0.00035616,30]
[340282633,1729003843207,-500.0,0.00035616,7]
[340282634,1729003843217,-500.0,0.00035616,30]
[340282635,1729003843226,-500.0,0.00035616,30]
[340282636,1729003843237,-555.58023124,0.00035616,30]
[340282637,1729003843247,-582.08226731,0.00035616,30]
[340282639,1729003843256,-500.0,0.00035616,30]
[340282641,1729003843266,-500.0,0.00035616,30]
[340282643,1729003843275,-512.58523991,0.00035616,30]
[340282645,1729003843285,-500.0,0.00035616,30]
[340282647,1729003843294,-500.0,0.00035616,30]
[340282649,1729003843304,-500.0,0.00035616,30]
[340282651,1729003843313,-500.0,0.00035616,30]
[340282653,1729003843323,-309.31887074,0.00035616,30]
[340282655,1729003843333,-478.73481286,0.00035616,30]
[340282657,1729003843343,-506.05644918,0.00035616,30]
[340282659,1729003843357,-516.48230266,0.00035616,30]
[340282661,1729003843366,-542.70067886,0.00035616,30]
[340282663,1729003843376,-500.0,0.00035616,30]
[340282665,1729003843386,-522.14376033,0.00035616,30]
[340282667,1729003843396,-500.0,0.00035616,30]
[340282669,1729003843405,-505.17655296,0.00035616,30]